Cogmind - Beta 16.1 @@@ ROGUE MODE // 2026.02.14 @ 19:22:01 Player: Krzychu Result: Destroyed by ML-H6E(R) with Subdweller Machine Gun Performance ------------- Evolutions (0) 0 Regions Visited (2) 400 Robots Destroyed (12) 60 Value Destroyed (344) 344 Prototype IDs (0) 0 Alien Tech Used (0) 0 Bonus (0) 0 TOTAL SCORE: 804 Bonus ------- None Cogmind --------- Core Integrity 0/250 Matter 148/300 Energy 58/100 System Corruption 0% Temperature Cool (0) Movement Core (200) Ox3 Location -10/Subcaves Parts ------- > --- POWER (1) -------- (None) > --- PROPULSION (2) --- (None) > --- UTILITY (2) ------ Heat Sink Small Storage Unit > --- WEAPON (2) ------- Light Assault Rifle Grenade Launcher > --- INVENTORY (8) ---- Aluminum Leg Aluminum Leg Subdweller Optics Seismic Detector Peak State ------------ > --- POWER ------------ Subdweller Power Source > --- PROPULSION ------- Aluminum Leg Aluminum Leg > --- UTILITY ---------- Small Storage Unit Light Armor Plating > --- WEAPON ----------- Battle Rifle Subdweller Shrapnel Launcher > --- INVENTORY -------- Aluminum Leg Aluminum Leg Heat Sink Subdweller Optics Seismic Detector Assault Rifle Light Assault Rifle Grenade Launcher [Rating: 10] Favorites ----------- Power Light Ion Engine Engine Light Ion Engine Propulsion Aluminum Leg Treads Light Treads Leg Aluminum Leg Utility Small Storage Unit Device Seismic Detector Storage Small Storage Unit Protection Light Armor Plating Weapon Light Assault Rifle Energy Gun Small Laser Ballistic Gun Light Assault Rifle Launcher Grenade Launcher Build | -11 -10 -10 ------- Run | Yrd Mat Sub Slots Evolved . | . . . Power . | . . . Propulsion . | . . . Utility . | . . . Weapon . | . . . Parts Attached 19 | 8 1 10 Power 5 | 1 . 4 Engine 5 | 1 . 4 Core . | . . . Reactor . | . . . Propulsion 3 | 3 . . Treads 1 | 1 . . Leg 2 | 2 . . Wheel . | . . . Hover . | . . . Flight . | . . . Utility 4 | 2 . 2 Device 2 | 1 . 1 Storage 1 | 1 . . Processor . | . . . Hackware . | . . . Protection 1 | . . 1 Artifact . | . . . Weapon 7 | 2 1 4 Energy Gun 1 | 1 . . Energy Cannon . | . . . Ballistic Gun 3 | 1 . 2 Ballistic Cannon . | . . . Launcher 3 | . 1 2 Special Weapon . | . . . Impact Weapon . | . . . Slashing Weapon . | . . . Piercing Weapon . | . . . Special Melee Weapon . | . . . Unidentified Prototypes . | . . . Parts Lost 7 | . . 7 Power 1 | . . 1 Propulsion 2 | . . 2 Utility 1 | . . 1 Weapon 3 | . . 3 Highest Loss Streak 6 | . . 6 To Critical Strikes . | . . . Average Backups 6 | 2 7 6 Power . | . 1 . Propulsion 1 | . 1 2 Utility 2 | . 1 2 Weapon 2 | . 2 2 Tool/Special . | . . . Unused Backups 5 | . 2 3 Power . | . . . Propulsion 2 | . . 2 Utility 2 | . 1 1 Weapon 1 | . 1 . Tool/Special . | . . . Average Slot Usage (%) 97 | . 100 96 Engine 12 | . 14 11 Leg 28 | . 28 28 Device 7 | . 14 5 Storage 14 | . 14 14 Protection 6 | . . 8 Energy Gun 1 | . 6 . Ballistic Gun 15 | . 14 16 Launcher 10 | . 7 11 Peak Build Rating 10 | 7 8 10 Average Rating 7 | 5 7 7 On Entrance 4 | . 7 7 Avg Prop Armor Cover (%) . | . . . Naked Turns . | . . . Heaviest Build 23 | 11 13 23 Greatest Support 20 | 20 20 20 Greatest Overweight (x) 1 | . . 1 Average Overweight (x) . | . . . Largest Inventory Capacity 8 | 8 8 8 Average Capacity 7 | 7 8 8 Most Carried 8 | 5 8 8 Average Carried 6 | 2 7 6 Final Capacity 8 | 8 8 8 Final Carried 7 | 5 7 4 Class Distribution -------------------- 100% | Mutant Dominant Class ---------------- Mutant | -10/Materials Mutant | -10/Subcaves Resources | -11 -10 -10 ----------- Run | Yrd Mat Sub Matter Collected 543 | 255 51 237 Remotely . | . . . Salvage Created 343 | 51 114 178 Parts 15 | 5 5 5 Haulers Intercepted 1 | . 1 . Recyclers Shooed 1 | 1 . . Parts Field Recycled . | . . . Retrieved Matter . | . . . Parts Self-Destructed 9 | . . 9 Prevented . | . . . Parts Restored . | . . . Kills | -11 -10 -10 ------- Run | Yrd Mat Sub Combat Hostiles Destroyed 8 | . 1 7 Guns 4 | . 1 3 AOE 4 | . . 4 Classes Destroyed 5 | 1 3 1 Worker 1 | . 1 . Tunneler 2 | 2 . . Hauler 1 | . 1 . Grunt 1 | . 1 . Subdweller 7 | . . 7 Best Kill Streak 3 | 1 2 3 Combat Bots Only 3 | . 1 3 Max Kills in Single Turn 2 | 1 2 1 Gunslinging . | . . . Exploded 1 | . . 1 Melee . | . . . Uniques/NPCs Destroyed . | . . . Combat | -11 -10 -10 -------- Run | Yrd Mat Sub Hostile Shots Fired 59 | . 1 58 Missed 17 | . . 17 Hits 42 | . 1 41 Projectile 42 | . 1 41 AOE 1 | . . 1 Critical Strikes 3 | . . 3 Damage Taken 1033 | . 15 1018 Core 264 | . . 264 Absorbed by Shields . | . . . Core Remaining (%) 100 | 100 . . Volleys Fired 38 | 4 7 27 Largest 2 | 2 2 2 Hottest 60 | 60 60 55 Shots Fired 72 | 7 14 51 Gun 54 | 7 13 34 Cannon . | . . . Launcher 18 | . 1 17 Special . | . . . Kinetic 46 | 4 7 35 Thermal 9 | 3 6 . Explosive 17 | . 1 16 Electromagnetic . | . . . Robot Hit Streak 8 | 5 2 8 Robot Miss Streak 3 | . 3 1 Penetration Max . | . . . Secondary Targets . | . . . Shots Hit Robots 35 | 5 6 24 Core Hits 27 | 3 6 18 Critical Kills 1 | . . 1 Critical Parts Destroyed . | . . . Critical Strikes 1 | . . 1 Destroy 1 | . . 1 Melee Attacks . | . . . Impact . | . . . Slashing . | . . . Piercing . | . . . Sneak Attacks . | . . . Combat Hostiles . | . . . Follow-up Attacks . | . . . Damage Inflicted 1323 | 55 94 1174 Guns 434 | 54 47 333 Cannons . | . . . Explosions 888 | . 47 841 Melee . | . . . Ramming 1 | 1 . . Kinetic 589 | 19 47 523 Thermal 35 | 35 . . Explosive 698 | . 47 651 Electromagnetic . | . . . Impact . | . . . Slashing . | . . . Piercing . | . . . Highest Corruption . | . . . Average Corruption . | . . . Corruption Purged . | . . . Corruption Blocked . | . . . Overload Shots . | . . . Overflow Damage 3 | . . 3 Projectiles . | . . . Explosions 3 | . . 3 Melee . | . . . Knockbacks . | . . . Impact . | . . . Kinetic . | . . . Secondary . | . . . Self-Inflicted Damage 57 | . . 57 Shots 1 | . . 1 Rammed . | . . . Targets Rammed 1 | 1 . . Kicked 1 | 1 . . Crushed . | . . . Highest Temperature 214 | 20 40 214 Average Temperature 37 | 11 15 119 Received Heat Transfer 385 | . 9 376 Siege Activations . | . . . Martial Activations . | . . . Shielding Activations . | . . . Robots Disrupted . | . . . Combat Hostiles . | . . . Robots Corrupted . | . . . Combat Hostiles . | . . . Parts Fried . | . . . Impact Corruptions . | . . . Robots Melted . | . . . Combat Hostiles . | . . . Parts Melted . | . . . Heat Transferred 75 | 75 . . Parts Sabotaged . | . . . Parts Stolen . | . . . Parts Stripped . | . . . Power Chain Reactions . | . . . Alert | -11 -10 -10 ------- Run | Yrd Mat Sub Maximum Alert Level . | . . . Low Security (%) 100 | 100 100 . Level 1 . | . . . Level 2 . | . . . Level 3 . | . . . Level 4 . | . . . Level 5 . | . . . High Security . | . . . Max Security . | . . . Peak Influence 42 | 5 42 . Initial . | . . . Average 6 | 1 8 . Influence Increases 73 | 10 63 . Destroy 0b10 Robot/C 20 | . 20 . Destroy 0b10 Robot/NC 20 | 10 10 . Destroy Leader 12 | . 12 . Successful Hack 14 | . 14 . Destroy Structure 7 | . 7 . Influence Decreases 73 | 10 63 . Time Decay 73 | 10 63 . Squads Dispatched . | . . . Investigation . | . . . Extermination . | . . . Reinforcement . | . . . Assault . | . . . Garrison . | . . . Intercept . | . . . Searches Triggered . | . . . Construction Impeded . | . . . Haulers Reinforced . | . . . Active Scanning Responses . | . . . Cargo Convoy Interrupts . | . . . Stealth | -11 -10 -10 --------- Run | Yrd Mat Sub Distress Signals . | . . . Communications Jammed . | . . . Distress Signals . | . . . Times Spotted 19 | . 6 13 Peak Tracking Total 5 | . 3 5 Tactical Retreats 1 | . . 1 Traps | -11 -10 -10 ------- Run | Yrd Mat Sub Traps Triggered . | . . . Indirectly . | . . . Trap Hack Attempts . | . . . Triggered . | . . . Disarmed . | . . . Reprogrammed . | . . . Reused . | . . . Traps Extracted . | . . . Installed . | . . . Triggered . | . . . Machines | -11 -10 -10 ---------- Run | Yrd Mat Sub Machines Disabled . | . . . Max in Single Turn . | . . . Machines Repaired . | . . . Machines Dismantled . | . . . Machines Sabotaged . | . . . Overloaded Fab Kills . | . . . Hacking | -11 -10 -10 --------- Run | Yrd Mat Sub Machines Accessed 2 | . 2 . Terminals 2 | . 2 . Fabricators . | . . . Repair Stations . | . . . Recycling Units . | . . . Scanalyzers . | . . . Garrison Access . | . . . Total Hacks 3 | . 3 . Successful 1 | . 1 . Failed 2 | . 2 . Catastrophic 1 | . 1 . Database Lockouts . | . . . Manual 1 | . 1 . Terminals 3 | . 3 . Fabricators . | . . . Repair Stations . | . . . Recycling Units . | . . . Scanalyzers . | . . . Garrison Access . | . . . Terminal Hacks 1 | . 1 . Robot Analysis 1 | . 1 . Fabricator Hacks . | . . . Repair Station Hacks . | . . . Recycling Unit Hacks . | . . . Scanalyzer . | . . . Garrison Access Hacks . | . . . Unauthorized Hacks . | . . . Terminals . | . . . Fabricators . | . . . Repair Stations . | . . . Recycling Units . | . . . Scanalyzers . | . . . Garrison Access . | . . . Data Cores Recovered . | . . . Used . | . . . Hacking Detections 1 | . 1 . Full Trace Events . | . . . Feedback Events . | . . . Feedback Blocked . | . . . Robot Schematics Acquired . | . . . Robots Built . | . . . Authchips . | . . . Time . | . . . Total Robot Build Rating . | . . . Part Schematics Acquired . | . . . Parts Built . | . . . Authchips . | . . . Time . | . . . Total Part Build Rating . | . . . Part Studies Acquired . | . . . Parts Repaired . | . . . Time . | . . . Parts Recycled . | . . . Recycled Matter . | . . . Retrieved Matter . | . . . Retrieved Components . | . . . Parts Scanalyzed . | . . . Part Schematics Acquired . | . . . Parts Damaged . | . . . Bothacking | -11 -10 -10 ------------ Run | Yrd Mat Sub Used RIF Installer . | . . . Robots Hacked . | . . . Non-combat . | . . . Combat . | . . . Robot Hacks Applied . | . . . Relay Couplers Released . | . . . Fabnet Peak Effective % . | . . . Robots Rewired . | . . . Allies Hacked . | . . . Hacks Repelled . | . . . Allies | -11 -10 -10 -------- Run | Yrd Mat Sub Total Allies . | . . . Largest Group . | . . . Highest-Rated Group . | . . . Highest-Rated Ally . | . . . Total Orders . | . . . Ally Attacks . | . . . Total Damage . | . . . Kills . | . . . Allies Corrupted . | . . . Allies Melted . | . . . Intel | -11 -10 -10 ------- Run | Yrd Mat Sub Active Infowar (turns) 666 | 26 313 327 Seismic 666 | 26 313 327 Robot Analysis Total 1 | . 1 . Derelict Logs Recovered 1 | . . 1 Drone Launches . | . . . Drone Recoveries . | . . . Exploration | -11 -10 -10 ------------- Run | Yrd Mat Sub Turns Passed 1366 | 98 313 955 Spaces Moved 899 | 56 188 655 Core 7 | 7 . . Treads 2 | 2 . . Legs 890 | 47 188 655 Wheels . | . . . Hover . | . . . Flight . | . . . Fastest Speed 50 | 50 120 120 Average Speed 121 | 112 120 122 Slowest Speed 190 | 160 120 190 Overloaded Moves . | . . . Propulsion Burnouts . | . . . Robots Hopped . | . . . Potential Cave-ins . | . . . Cave-ins Triggered . | . . . Exploration Rate (%) 29 | 4 33 51 Regions Visited 2 Branch Regions 1 Pre-discovered Areas . | . . . Known Exits Taken . | . . . Unknown Exits Taken 2 | 1 1 . Scrap Searched . | . . . Spaces Dug . | . . . Terrain Destroyed 96 | . 7 89 Melee . | . . . Projectile . | . . . AOE 96 | . 7 89 Terrain Rammed . | . . . Walls Destroyed . | . . . Machines Disabled . | . . . Actions | -11 -10 -10 --------- Run | Yrd Mat Sub Total 1103 | 80 264 759 Wait 121 | 7 59 55 Move 897 | 55 187 655 Hop . | . . . Pick Up 13 | 5 6 2 Fast Attach 8 | 7 . 1 Attach 5 | . . 5 Detach 1 | . . 1 Swap 12 | 1 1 10 Drop 7 | . 4 3 Fire 38 | 4 7 27 Melee . | . . . Ram . | . . . Kick 1 | 1 . . Crush . | . . . Escape Stasis . | . . . Rewire . | . . . Trap . | . . . Miscellaneous . | . . . Route ------- -11/Scrapyard -10/Materials (discovered 2 exits: [*Mat] / [*Sub]) -10/Subcaves (discovered 2 exits: [*Mat] / [Scr]) History --------- Turn | Location | Event 5 | -11/Scrapyard | Discovered new exit (range 15) 99 | -11/Scrapyard | Entered Materials 100 | -10/Materials | Met a group of wandering Federalists 228 | -10/Materials | Discovered new exit (range 14) 328 | -10/Materials | Build established: Mutant 377 | -10/Materials | Discovered new exit (range 5) 412 | -10/Materials | Entered Subcaves 413 | -10/Subcaves | Continued accompanying wandering Federalists (3) 413 | -10/Subcaves | Approached by a straggling Scientist 440 | -10/Subcaves | Discovered new exit (range 12) 1222 | -10/Subcaves | Learned Materials stockpile data 1347 | -10/Subcaves | Shifting Twisted Machinery released Battle Rifle 1360 | -10/Subcaves | Core integrity fell below 50% 1364 | -10/Subcaves | Core integrity fell below 20% 1367 | -10/Subcaves | Destroyed by ML-H6E(R) with Subdweller Machine Gun Last Messages --------------- powers down. 01220_ Dropped Broken Sub. Power Source. 01221_ Acquired 39 matter. 01222_ Acquired derelict log, extracted data. Data stored: Materials stockpile data. OW-K8X(c): "I think it's somewhere northeast of here" 01333_ Lgt. Armor Plating destroyed. Battle Rifle falls loose from the Twisted Machinery. 01353_ Critical hit (Meltdown: +250). 01355_ Battle Rifle destroyed. [Achievement: There's More Where That Came From] 01359_ Assault Rifle destroyed. 01359_ Sub. Shrapnel Launcher destroyed. 01359_ Destroyed Sub. Shrapnel Launcher. 01359_ R4-ZQO(R) destroyed. 01361_ Aluminum Leg destroyed. 01366_ N3-53F(R) suffers critical hit (Destroy). 01366_ N3-53F(R) destroyed. Map ----- +----------------------------------------------------+ | | | | | | | | | | | ?????????????????????????????????????????????????? | | ?????????????????????????????????????????????????? | | ?????????????????????????????????????????????????? | | ?????????????????????????????????????????????????? | | ?????????????????????????????????????????????????? | | ?????????????????????????????????????????????????? | | ?????????????????????????????????????????????????? | | ?????????????????????????????????????????????????? | | ?????????????????????????????????????????????????? | | ?????????????????????????????????????????????????? | | ?????????????????????????????????????????????????? | | ???????????????????########??????????????????????? | | ???????????????????# ###????????????????????? | | ???????????????????# ### #????????????????????? | | ???????####????????# ##<## #????????????????????? | | ?????### ####?##### #<$<## ##???????????????????? | | ????## ### # #<$$$# #???????????????????? | | ???## #$ $<# #???????????????????? | | #### ## # ##???????????????????? | | ###### ## R #????????????????????? | | #????#### % % @ ;#????????????????????? | | #??????# = R ;;#????????????????????? | | #?????# R ; #????????????????????? | | ##### # # ###????????????????????? | | #???## # #??### # ;#??????????????????????? | | #???? #? #?????#?## #??????????????????????? | | #????# ? #????????# ##??????????????????????? | | ????# ??????????# #???????????????????????? | | # ????### ????????? ???????????????????????? | | ?## ??????? ???????? #??????????????????????? | | ???# ##???????????????###? ??????????????????????? | | ????##???????????????????????????????????????????? | | ?????????????????????????????????????????????????? | | ?????????????????????????????????????????????????? | | ?????????????????????????????????????????????????? | | ?????????????????????????????????????????????????? | | ?????????????????????????????????????????????????? | | ?????????????????????????????????????????????????? | | ?????????????????????????????????????????????????? | | ?????????????????????????????????????????????????? | | ?????????????????????????????????????????????????? | | ?????????????????????????????????????????????????? | | ?????????????????????????????????????????????????? | | ?????????????????????????????????????????????????? | | ?????????????????????????????????????????????????? | +----------------------------------------------------+ Best States ------------- Heat Dissipation 35 Energy Generation 15 Energy Capacity 200 Matter Stores 300 Matter Capacity 300 Sight Range 16 Terrain Scan Density 10 Armor Coverage 150 Evasion (%) 55 Recoil Reduction 1 Item Schematics ----------------- None Robot Schematics ------------------ None Fabricated ------------ Nothing Repaired ---------- Nothing Studied --------- None Alien Tech Used ----------------- None Achievements -------------- DATA ERROR: Steam Global Achievement% Do Not Disturb For Emergencies Only Organ Harvest Strength In Numbers There's More Where That Came From Challenges ------------ None Game ------ Seed PropulsionMultinovaMultitool Manual? 0 Play Time 00:24:47 Cumulative 58.2 hours Start 2026.02.14 @ 18:57:17 End 2026.02.14 @ 19:22:01 Sessions 1 Manual Loads 0 Difficulty Rogue Special Mode None Game No. 35 Rogue 35 Adventurer 0 Explorer 0 Win Type - Total 0 Types 0/0/0/0/0/0/0/0/0/0 Lore% 21 Gallery% 22 Achievement% 13 Wizard Run 0 Options --------- Layout 1 ASCII 0 Keyboard 1 Movement Numpad Keybinds 0 Fullscreen 1 Font 24/Smallcaps Map View 50x35 Zoom Use 18% Tactical HUD 1 Map Filters NONE Filters NONE Steam 1 RUN: 69021ea9-7ba6-48ea-9101-1695bd8554a5